fUSD/lending_fUSD_20260225
["ID","MTS","AMOUNT","RATE_DAILY","PERIOD"]
[406628912,1771993843430,-873.09,0.00017999,2]
[406628914,1771993843439,-873.09,0.00017999,2]
[406628916,1771993843448,-873.09,0.00017999,2]
[406628918,1771993843456,-873.09,0.00017999,2]
[406628920,1771993843465,-873.09,0.00017999,2]
[406628922,1771993843474,-873.09,0.00017999,2]
[406628924,1771993843483,-873.09,0.00017999,2]
[406628926,1771993843492,-873.09,0.00017999,2]
[406628928,1771993843501,-873.24855363,0.00017999,2]
[406628930,1771993843509,-500.0,0.00017999,2]
[406628932,1771993843518,-500.0,0.00017999,2]
[406628934,1771993843527,-500.0,0.00017999,2]
[406628936,1771993843536,-500.0,0.00017999,2]
[406628938,1771993843545,-237.85424524,0.00017999,2]
[406628940,1771993843554,-698.6,0.00017999,2]
[406628942,1771993843562,-698.6,0.00017999,2]
[406628944,1771993843572,-698.6,0.00017999,2]
[406628946,1771993843580,-698.6,0.00017999,2]
[406628948,1771993843589,-698.6,0.00017999,2]
[406628950,1771993843600,-698.6,0.00017999,2]
[406628952,1771993843609,-698.6,0.00017999,2]
[406628955,1771993843618,-698.6,0.00017999,2]
[406628956,1771993843627,-698.6,0.00017999,2]
[406628959,1771993843636,-698.6,0.00017999,2]
[406628960,1771993843645,-698.6,0.00017999,2]
[406628963,1771993843654,-698.6,0.00017999,2]
[406628965,1771993843664,-698.61701004,0.00017999,2]
[406628967,1771993843676,-500.0,0.00017999,2]
[406628968,1771993843685,-500.0,0.00017999,2]
[406628971,1771993843695,-500.0,0.00017999,2]
[406628972,1771993843704,-500.0,0.00017999,2]
[406628974,1771993843714,-500.0,0.00017999,2]
[406628976,1771993843724,-500.0,0.00017999,2]
[406628978,1771993843733,-500.0,0.00017999,2]
[406628981,1771993843744,-638.1310629,0.00017999,2]
[406628982,1771993843753,-300.0,0.00017999,2]
[406628985,1771993843762,-500.0,0.00017999,2]
[406628986,1771993843771,-500.0,0.00017999,2]
[406628988,1771993843780,-500.0,0.00017999,2]
[406628991,1771993843789,-500.0,0.00017999,2]
[406628993,1771993843798,-500.0,0.00017999,2]
[406628995,1771993843808,-500.0,0.00017999,2]
[406628997,1771993843817,-500.0,0.00017999,2]
[406628999,1771993843825,-500.0,0.00017999,2]
[406629001,1771993843834,-386.19326799,0.00017999,2]
[406629003,1771993843842,-161.474211,0.00017999,2]
[406629005,1771993843852,-300.0,0.00017999,2]
[406629006,1771993843861,-666.0,0.00017999,2]
[406629008,1771993843869,-500.0,0.00017999,2]
[406629010,1771993843879,-500.0,0.00017999,2]
[406629013,1771993843888,-500.0,0.00017999,2]
[406629014,1771993843896,-500.0,0.00017999,2]
[406629016,1771993843905,-500.0,0.00017999,2]
[406629018,1771993843914,-500.0,0.00017999,2]
[406629020,1771993843923,-500.0,0.00017999,2]
[406629022,1771993843932,-500.0,0.00017999,2]
[406629024,1771993843941,-500.0,0.00017999,2]
[406629026,1771993843949,-500.0,0.00017999,2]
[406629028,1771993843958,-597.30416572,0.00017999,2]
[406629030,1771993843967,-3388891.19715937,0.00018,2]
[406629032,1771993843977,-63847.6238897,0.00018,2]
[406629034,1771993843986,-2440205.97643311,0.00018,2]
[406629037,1771993844001,-21774.12000578,0.00018,2]
[406629039,1771993844012,-903.97839067,0.00018,2]
[406629046,1771993844061,-8323.3767327,0.00018,2]
[406629047,1771993844072,-1582.65575351,0.00018,2]
[406629048,1771993844082,-62263.60443821,0.00018,2]
[406629049,1771993844097,-7222.24352672,0.00018,2]
[406629050,1771993844107,-2451.06346435,0.00018,2]
[406629051,1771993844117,-658.17768809,0.00018,2]
[406629052,1771993844128,-2480.45260154,0.00018,2]
[406629053,1771993844139,-442.19999999,0.00018,2]
[406629100,1771993845859,-2705.65788296,0.00012949,2]
[406629101,1771993845868,-522.19973079,0.00018,2]
[406629102,1771993845879,-530.914998,0.00018,2]
[406629103,1771993845890,-4780.9498,0.00018,2]
[406629104,1771993845900,-863.33949,0.00018,2]
[406629105,1771993845912,-9190.5695,0.00018,2]
[406629106,1771993845923,-1308.36801783,0.00018,2]
[406629107,1771993846080,-372.97299904,0.00018,2]
[406629108,1771993846263,-715.12960042,0.00018,2]
[406629109,1771993876845,382.3578643,0.00045824,120]
[406629113,1771993908001,9294.27743742,0.00045824,30]
[406629119,1771994163477,500.0,0.00045824,120]
[406629120,1771994163726,326.56504254,0.00045824,120]
[406629121,1771994163812,150.0,0.00045824,30]
[406629122,1771994168839,150.0,0.00045824,30]
[406629123,1771994173821,150.0,0.00045824,30]
[406629124,1771994178861,150.0,0.00045824,30]
[406629125,1771994183820,150.0,0.00045824,30]
[406629126,1771994189183,150.0,0.00045824,30]
[406629127,1771994193824,272.30495988,0.00045824,30]
[406629128,1771994198842,181.15715803,0.00045824,30]
[406629129,1771994203809,181.15715803,0.00045824,30]
[406629130,1771994208816,181.15715803,0.00045824,30]
[406629131,1771994213833,181.15715803,0.00045824,30]
[406629146,1771994415204,500.0,0.00045815,120]
[406629148,1771994415437,500.0,0.00045815,120]
[406629149,1771994415687,500.0,0.00045815,120]
[406629150,1771994416042,500.0,0.00045815,120]
[406629151,1771994416306,500.0,0.00045815,120]
[406629153,1771994416535,500.0,0.00045815,120]
[406629154,1771994416780,500.0,0.00045815,120]
[406629156,1771994417012,500.0,0.00045815,120]
[406629157,1771994417241,500.0,0.00045815,120]
[406629159,1771994417800,500.0,0.00045815,120]
[406629160,1771994418053,500.0,0.00045815,120]
[406629162,1771994418291,500.0,0.00045815,120]
[406629163,1771994418535,500.0,0.00045815,120]
[406629165,1771994418796,500.0,0.00045815,120]
[406629166,1771994419034,500.0,0.00045815,120]
[406629167,1771994419266,500.0,0.00045815,120]
[406629168,1771994419530,500.0,0.00045815,120]
[406629170,1771994419777,500.0,0.00045815,120]
[406629171,1771994420074,627.76000787,0.00045815,120]
[406629187,1771994573027,150.0,0.00045815,120]
[406629188,1771994573798,150.0,0.00045815,120]
[406629189,1771994575956,150.0,0.00045815,120]
[406629190,1771994577241,150.0,0.00045815,120]
[406629191,1771994608815,1764.25,6.7e-05,2]
[406629195,1771994849262,700.0,0.000107,3]
[406629196,1771994851351,1400.0,0.000108,3]
[406629197,1771994853486,2200.0,0.000109,3]
[406629199,1771994997624,-1500.0,9.968e-05,2]
[406629200,1771994997644,-250.0,9.983e-05,2]
[406629201,1771994997665,-300.0,9.999e-05,2]
[406629202,1771994997685,-1000.0,0.0001,2]
[406629203,1771994997705,-232.0,0.0001,2]
[406629204,1771994997728,-1393.74029972,0.0001,2]
[406629205,1771995005717,-1475.0,0.0001,2]
[406629206,1771995005737,-275.0,0.0001,2]
[406629207,1771995005757,-232.0,0.0001,2]
[406629208,1771995026082,940.80179128,0.00045821,120]
[406629209,1771995031943,-250.0,0.00010012,2]
[406629210,1771995031964,-275.0,0.00010037,2]
[406629212,1771995031987,-197.766468,0.00010044,2]
[406629215,1771995032008,-1470.32,0.00010059,2]
[406629216,1771995032035,-1000.0,0.000101,2]
[406629217,1771995032132,-1000.0,0.00010207,2]
[406629218,1771995032170,-200.0,0.00010207,2]
[406629219,1771995032179,-814.1262929,0.00010208,2]
[406629220,1771995032201,-2054.61400681,0.00010208,2]
[406629221,1771995032210,-1076.52547829,0.00010258,2]
[406629222,1771995032220,-480.05628739,0.00010363,2]
[406629223,1771995032229,-190.38549281,0.00010372,2]
[406629224,1771995032238,-172.69120173,0.00010372,2]
[406629225,1771995032248,-500.0,0.00010372,2]
[406629226,1771995032258,-617.71002636,0.00010372,2]
[406629227,1771995032267,-776.1257257,0.00010373,2]
[406629228,1771995032278,-952.0,0.00010373,2]
[406629229,1771995032289,-2454.25531392,0.00010373,2]
[406629279,1771995040302,-449.495,0.00010372,2]
[406629280,1771995040516,-50.505,0.00010372,2]
[406629281,1771995040526,-500.0,0.00010372,2]
[406629282,1771995040535,-500.0,0.00010372,2]
[406629283,1771995040544,-500.0,0.00010372,2]
[406629284,1771995040554,-500.0,0.00010372,2]
[406629285,1771995040563,-500.0,0.00010372,2]
[406629286,1771995040573,-500.0,0.00010372,2]
[406629287,1771995040582,-500.0,0.00010372,2]
[406629288,1771995040591,-500.0,0.00010372,2]
[406629289,1771995040600,-500.0,0.00010372,2]
[406629290,1771995040609,-500.0,0.00010372,2]
[406629291,1771995040618,-500.0,0.00010372,2]
[406629292,1771995040627,-500.0,0.00010372,2]
[406629293,1771995040637,-500.0,0.00010372,2]
[406629294,1771995040647,-500.0,0.00010372,2]
[406629295,1771995040657,-500.0,0.00010372,2]
[406629296,1771995040666,-500.0,0.00010372,2]
[406629297,1771995040675,-500.0,0.00010372,2]
[406629298,1771995040685,-500.0,0.00010372,2]
[406629299,1771995040694,-500.0,0.00010372,2]
[406629300,1771995040703,-369.63005658,0.00010372,2]
[406629301,1771995040712,-500.0,0.00010372,2]
[406629302,1771995040721,-500.0,0.00010372,2]
[406629303,1771995040730,-500.0,0.00010372,2]
[406629304,1771995040739,-500.0,0.00010372,2]
[406629305,1771995040747,-500.0,0.00010372,2]
[406629306,1771995040756,-500.0,0.00010372,2]
[406629307,1771995040765,-500.0,0.00010372,2]
[406629308,1771995040775,-34038.70743616,0.00010373,2]
[406629309,1771995040787,-1961778.91152422,0.00010373,2]
[406629310,1771995040796,-5547.114768,0.00010466,2]
[406629311,1771995040805,-150.0,0.00010472,2]
[406629312,1771995040815,-500.0,0.00010473,2]
[406629313,1771995040824,-150.99,0.00010473,2]
[406629314,1771995040834,-9999.99,0.00010473,2]
[406629315,1771995040843,-3846.59,0.00010512,2]
[406629316,1771995040852,-2868.74029971,0.00010516,2]
[406629317,1771995040862,-275.69544857,0.00010539,2]
[406629318,1771995040870,-500.34608297,0.00010573,2]
[406629319,1771995040880,-500.0,0.00010573,2]
[406629320,1771995040889,-500.0,0.00010573,2]
[406629321,1771995040898,-500.0,0.00010573,2]
[406629322,1771995040908,-500.0,0.00010573,2]
[406629323,1771995040916,-500.0,0.00010573,2]
[406629324,1771995040926,-500.0,0.00010573,2]
[406629325,1771995040935,-500.0,0.00010573,2]
[406629326,1771995040944,-151.0,0.00010582,2]
[406629327,1771995040954,-151.0,0.00010582,2]
[406629328,1771995040963,-151.0,0.00010582,2]
[406629329,1771995040973,-151.0,0.00010582,2]
[406629330,1771995040983,-281.18454662,0.00010582,2]
[406629331,1771995040992,-151.0,0.00010582,2]
[406629332,1771995041001,-151.0,0.00010582,2]
[406629333,1771995041010,-151.0,0.00010582,2]
[406629334,1771995041021,-151.0,0.00010582,2]
[406629335,1771995041034,-151.0,0.00010582,2]
[406629336,1771995041043,-151.0,0.00010582,2]
[406629337,1771995041052,-151.0,0.00010582,2]
[406629338,1771995041064,-151.0,0.00010582,2]
[406629339,1771995041073,-152.32338654,0.00010582,2]
[406629340,1771995041083,-53404.93771133,0.00010588,2]
[406629341,1771995041094,-2836.9754,0.00010826,2]
[406629342,1771995041103,-1000.0,0.00010826,2]
[406629343,1771995041111,-150.0,0.00010959,2]
[406629344,1771995041120,-308.29697349,0.00010964,2]
[406629345,1771995041129,-300.0,0.00010964,2]
[406629346,1771995041138,-300.0,0.00010964,2]
[406629347,1771995041147,-5000.0,0.00010964,2]
[406629348,1771995041157,-5000.0,0.00010964,2]
[406629349,1771995041166,-5000.0,0.00010964,2]
[406629350,1771995041175,-5000.0,0.00010964,2]
[406629351,1771995041184,-5000.0,0.00010964,2]
[406629352,1771995041193,-2500.0,0.00010964,2]
[406629353,1771995041202,-2500.0,0.00010964,2]
[406629354,1771995041211,-2500.0,0.00010964,2]
[406629355,1771995041220,-2500.0,0.00010964,2]
[406629356,1771995041229,-2500.0,0.00010964,2]
[406629357,1771995041238,-300.0,0.00010964,2]
[406629358,1771995041247,-300.0,0.00010964,2]
[406629359,1771995041256,-300.0,0.00010964,2]
[406629360,1771995041265,-300.0,0.00010964,2]
[406629361,1771995041274,-300.0,0.00010964,2]
[406629362,1771995041284,-250.0,0.00010964,2]
[406629363,1771995041293,-195.0,0.00010964,2]
[406629364,1771995041302,-195.0,0.00010964,2]
[406629365,1771995041313,-195.0,0.00010964,2]
[406629366,1771995041323,-195.0,0.00010964,2]
[406629367,1771995041335,-195.0,0.00010964,2]
[406629368,1771995041344,-300.0,0.00010964,2]
[406629369,1771995041355,-300.0,0.00010964,2]
[406629370,1771995041364,-300.0,0.00010964,2]
[406629371,1771995041373,-2016.95424151,0.00010979,2]
[406629372,1771995041382,-314.06541696,0.00011,2]
[406629373,1771995041391,-250.0,0.00011,2]
[406629374,1771995041400,-2500.0,0.00011033,2]
[406629375,1771995041410,-1090.95825918,0.00011079,2]
[406629376,1771995041419,-8700.56081711,0.00011079,2]
[406629377,1771995041439,-2029.24341222,0.00011079,2]
[406629378,1771995041450,-1336.83849285,0.00011079,2]
[406629379,1771995041468,-27578.62451789,0.00011099,2]
[406629380,1771995041478,-15579.80235503,0.00011099,2]
[406629381,1771995041487,-1000.0,0.00011121,2]
[406629382,1771995041496,-1000.0,0.00011121,2]
[406629383,1771995041506,-1000.0,0.00011121,2]
[406629384,1771995041515,-1000.0,0.00011121,2]
[406629385,1771995041524,-1000.0,0.00011121,2]
[406629386,1771995041533,-151.0,0.0001113,2]
[406629387,1771995041542,-1600.0,0.00011179,2]
[406629388,1771995041551,-1680.0,0.00011228,2]
[406629389,1771995041562,-4591.85,0.00011233,2]
[406629390,1771995041572,-86105.21879437,0.00011308,2]
[406629391,1771995041581,-255.0,0.00011498,2]
[406629392,1771995041591,-3510.36322342,0.0001152,2]
[406629393,1771995041600,-28000.96388012,0.00011655,2]
[406629394,1771995041609,-1500.0,0.00011668,2]
[406629395,1771995041618,-1500.0,0.00011668,2]
[406629396,1771995041627,-1500.0,0.00011668,2]
[406629397,1771995041636,-1500.0,0.00011668,2]
[406629398,1771995041645,-1500.0,0.00011668,2]
[406629399,1771995041654,-2043.33467303,0.00011701,2]
[406629400,1771995041663,-15579.80235494,0.00011748,2]
[406629401,1771995041672,-2173.08199545,0.00011755,2]
[406629402,1771995041681,-535.572,0.000118,2]
[406629403,1771995041691,-27578.62451783,0.00011837,2]
[406629404,1771995041699,-2029.24341222,0.00012053,2]
[406629405,1771995041709,-21295.94,0.00012055,2]
[406629406,1771995041718,-1336.83849284,0.00012216,2]
[406629407,1771995041727,-2000.0,0.00012216,2]
[406629408,1771995041736,-2000.0,0.00012216,2]
[406629409,1771995041744,-2000.0,0.00012216,2]
[406629410,1771995041754,-2000.0,0.00012216,2]
[406629411,1771995041763,-2000.0,0.00012216,2]
[406629412,1771995041772,-1232.0,0.0001235,2]
[406629413,1771995041781,-2179.29808844,0.00012422,2]
[406629414,1771995041791,-15579.80235494,0.00012517,2]
[406629415,1771995041800,-420.46,0.00012556,2]
[406629416,1771995041810,-1600.0,0.00012577,2]
[406629417,1771995041819,-27578.62451783,0.00012595,2]
[406629418,1771995041832,-433.0,0.00012629,2]
[406629419,1771995041841,-166.67,0.0001274,2]
[406629420,1771995041851,-500.0,0.00012764,2]
[406629421,1771995041861,-2500.0,0.00012764,2]
[406629422,1771995041870,-500.0,0.00012764,2]
[406629423,1771995041880,-500.0,0.00012764,2]
[406629424,1771995041889,-500.0,0.00012764,2]
[406629425,1771995041898,-2029.24341222,0.00013028,2]
[406629426,1771995041908,-2341.64193552,0.00013143,2]
[406629427,1771995041917,-250.0,0.00013171,2]
[406629428,1771995041926,-15579.80235494,0.00013286,2]
[406629429,1771995041936,-1000.0,0.00013312,2]
[406629430,1771995041946,-1336.83849284,0.00013353,2]
[406629431,1771995041956,-27578.62451783,0.00013353,2]
[406629432,1771995041965,-500.0,0.00013448,2]
[406629433,1771995041975,-500.0,0.00013698,2]
[406629434,1771995041984,-1045.94,0.00013698,2]
[406629435,1771995041993,-1045.94,0.00013698,2]
[406629436,1771995042003,-873.09,0.00013698,2]
[406629437,1771995042014,-873.09,0.00013698,2]
[406629438,1771995042029,-873.09,0.00013698,2]
[406629439,1771995042038,-873.09,0.00013698,2]
[406629440,1771995042048,-873.09,0.00013698,2]
[406629441,1771995042060,-873.09,0.00013698,2]
[406629442,1771995042070,-873.09,0.00013698,2]
[406629443,1771995042079,-873.09,0.00013698,2]
[406629444,1771995042091,-698.6,0.00013698,2]
[406629445,1771995042100,-698.6,0.00013698,2]
[406629446,1771995042110,-698.6,0.00013698,2]
[406629447,1771995042119,-698.6,0.00013698,2]
[406629448,1771995042128,-500.0,0.00013698,2]
[406629449,1771995042138,-500.0,0.00013698,2]
[406629450,1771995042156,-698.6,0.00013698,2]
[406629451,1771995042171,-698.6,0.00013698,2]
[406629452,1771995042186,-698.6,0.00013698,2]
[406629453,1771995042200,-698.6,0.00013698,2]
[406629454,1771995042216,-500.0,0.00013698,2]
[406629455,1771995042227,-500.0,0.00013698,2]
[406629456,1771995042238,-500.0,0.00013698,2]
[406629457,1771995042250,-500.0,0.00013698,2]
[406629458,1771995042262,-500.0,0.00013698,2]
[406629459,1771995042275,-500.0,0.00013698,2]
[406629460,1771995042286,-500.0,0.00013698,2]
[406629461,1771995042297,-500.0,0.00013698,2]
[406629462,1771995042312,-500.0,0.00013698,2]
[406629463,1771995042325,-500.0,0.00013698,2]
[406629464,1771995042338,-500.0,0.00013698,2]
[406629465,1771995042351,-500.0,0.00013698,2]
[406629466,1771995042365,-500.0,0.00013698,2]
[406629467,1771995042378,-500.0,0.00013698,2]
[406629468,1771995042389,-500.0,0.00013698,2]
[406629469,1771995042400,-500.0,0.00013698,2]
[406629470,1771995042416,-500.0,0.00013698,2]
[406629471,1771995042430,-500.0,0.00013698,2]
[406629472,1771995042442,-500.0,0.00013698,2]
[406629473,1771995042454,-500.0,0.00013698,2]
[406629474,1771995042466,-500.0,0.00013698,2]
[406629475,1771995042477,-500.0,0.00013698,2]
[406629476,1771995042489,-500.0,0.00013698,2]
[406629477,1771995042500,-500.0,0.00013698,2]
[406629478,1771995042512,-500.0,0.00013698,2]
[406629479,1771995042525,-506.76,0.00013698,2]
[406629480,1771995042537,-532.53256968,0.00013698,2]
[406629481,1771995042548,-500.0,0.00013698,2]
[406629482,1771995042565,-500.0,0.00013698,2]
[406629483,1771995042576,-500.0,0.00013698,2]
[406629484,1771995042587,-500.0,0.00013698,2]
[406629485,1771995042601,-200.23,0.00013699,2]
[406629486,1771995042612,-166.67,0.00013791,2]
[406629487,1771995042624,-173.91437885,0.00013863,2]
[406629488,1771995042636,-2503.98578259,0.00013864,2]
[406629489,1771995042647,-736.0,0.00013864,2]
[406629490,1771995042659,-2900.0,0.000139,5]
[406629491,1771995042670,-1600.0,0.00013974,2]
[406629492,1771995042681,-2029.24341222,0.00014002,2]
[406629493,1771995042692,-15579.80235494,0.00014055,2]
[406629494,1771995042704,-27578.62451783,0.00014111,2]
[406629495,1771995042715,-8906.11,0.00014135,2]
[406629496,1771995042726,-200.23,0.00014384,2]
[406629497,1771995042738,-1090.95825916,0.0001449,2]
[406629498,1771995042748,-1336.83849284,0.0001449,2]
[406629499,1771995042763,-2740.18414109,0.00014585,2]
[406629500,1771995042781,-3846.59,0.00014717,2]
[406629501,1771995042794,-1895.16543401,0.00014742,2]
[406629502,1771995042806,-15579.80235494,0.00014824,2]
[406629503,1771995042819,-166.67,0.00014842,2]
[406629504,1771995042831,-1045.94,0.00014951,2]
[406629505,1771995042843,-500.0,0.00014951,2]
[406629506,1771995042854,-500.0,0.00014951,2]
[406629508,1771995042864,-500.0,0.00014951,2]
[406629509,1771995042874,-500.0,0.00014951,2]
[406629510,1771995042885,-500.0,0.00014951,2]
[406629511,1771995042895,-500.0,0.00014951,2]
[406629512,1771995042906,-2029.24341222,0.00014977,2]
[406629514,1771995042918,-967.480009,0.0001498,7]
[406629516,1771995042930,-200.23,0.00015068,2]
[406629518,1771995042942,-162.20020905,0.000151,2]
[406629520,1771995042952,-500.0,0.00015133,2]
[406629522,1771995042962,-1252.0,0.00015215,2]
[406629524,1771995042972,-2907.29279535,0.00015306,2]
[406629526,1771995042983,-1600.0,0.00015372,2]
[406629527,1771995042993,-15579.80235494,0.00015593,2]
[406629528,1771995043003,-1336.83849284,0.00015626,2]
[406629529,1771995043015,-200.23,0.00015753,2]
[406629530,1771995043029,-413.59,0.00015849,2]
[406629531,1771995043040,-3801.76084415,0.00015851,2]
[406629532,1771995043053,-873.09,0.00015915,2]
[406629533,1771995043067,-698.6,0.00015915,2]
[406629534,1771995043079,-618.0,0.00015916,2]
[406629535,1771995043089,-1340.0,0.00015916,2]
[406629536,1771995043101,-3497.0,0.00015916,2]
[406629537,1771995043111,-1040.0,0.00015916,2]
[406629538,1771995043121,-150.0,0.00015916,2]
[406629539,1771995043131,-1277.0,0.00015916,2]
[406629540,1771995043142,-920.0,0.00015916,2]
[406629541,1771995043152,-1210.0,0.00015916,2]
[406629542,1771995043173,-5405.0,0.00015916,2]
[406629543,1771995043186,-2456.0,0.00015916,2]
[406629544,1771995043198,-5982.0,0.00015916,2]
[406629545,1771995043210,-2029.24341222,0.00015951,2]
[406629546,1771995043222,-500.0,0.00016025,2]
[406629547,1771995043235,-3010.14386778,0.00016027,2]
[406629548,1771995043247,-1895.165434,0.00016321,2]
[406629549,1771995043259,-15579.80235494,0.00016362,2]
[406629550,1771995043271,-200.23,0.00016438,2]
[406629551,1771995043283,-4264.13,0.0001651,2]
[406629552,1771995043295,-869.45005245,0.00016673,30]
[406629553,1771995043311,-1856.0,0.00016713,2]
[406629554,1771995043323,-3199.73294032,0.00016748,2]
[406629555,1771995043335,-1336.83849284,0.00016763,2]
[406629556,1771995043347,-1600.0,0.00016769,2]
[406629557,1771995043358,-156.51050416,0.0001677,2]
[406629558,1771995043370,-3801.76084415,0.00016876,2]
[406629559,1771995043382,-2029.24341222,0.00016926,2]
[406629560,1771995043394,-268.20488063,0.000171,2]
[406629561,1771995043405,-15579.80235494,0.00017131,2]
[406629562,1771995043417,-2462.952,0.00017424,2]
[406629563,1771995043428,-193.994,0.00017424,2]
[406629564,1771995043439,-3868.16755737,0.00017469,2]
[406629565,1771995043451,-500.0,0.00017499,2]
[406629566,1771995043462,-3700.0,0.000175,6]
[406629567,1771995043473,-700.0,0.000176,6]
[406629568,1771995043484,-1706.0844629,0.0001764,2]
[406629569,1771995043495,-700.0,0.000177,6]
[406629570,1771995043507,-1045.94,0.00017728,2]
[406629571,1771995043517,-500.0,0.00017728,2]
[406629572,1771995043529,-500.0,0.00017728,2]
[406629573,1771995043539,-500.0,0.00017728,2]
[406629574,1771995043550,-500.0,0.00017728,2]
[406629575,1771995043563,-500.0,0.00017728,2]
[406629576,1771995043573,-500.0,0.00017728,2]
[406629577,1771995043584,-700.0,0.000178,6]
[406629578,1771995043595,-509.8484414,0.00017808,2]
[406629579,1771995043606,-509.8484414,0.00017808,2]
[406629580,1771995043617,-509.8484414,0.00017808,2]
[406629581,1771995043627,-509.8484414,0.00017808,2]
[406629582,1771995043637,-509.8484414,0.00017808,2]
[406629583,1771995043648,-509.8484414,0.00017808,2]
[406629584,1771995043659,-509.8484414,0.00017808,2]
[406629585,1771995043671,-509.8484414,0.00017808,2]
[406629586,1771995043681,-509.8484414,0.00017808,2]
[406629587,1771995043698,-509.8484414,0.00017808,2]
[406629588,1771995043711,-509.8484414,0.00017808,2]
[406629589,1771995043725,-509.8484414,0.00017808,2]
[406629590,1771995043736,-509.8484414,0.00017808,2]
[406629591,1771995043748,-509.8484414,0.00017808,2]
[406629592,1771995043759,-509.8484414,0.00017808,2]
[406629593,1771995043771,-509.8484414,0.00017808,2]
[406629594,1771995043783,-509.8484414,0.00017808,2]
[406629595,1771995043794,-509.8484414,0.00017808,2]
[406629596,1771995043805,-509.8484414,0.00017808,2]
[406629597,1771995043816,-509.8484414,0.00017808,2]
[406629598,1771995043828,-800.0,0.00017808,2]
[406629599,1771995043839,-1045.94,0.00017899,2]
[406629600,1771995043850,-500.0,0.00017899,2]
[406629601,1771995043862,-500.0,0.00017899,2]
[406629602,1771995043873,-500.0,0.00017899,2]
[406629603,1771995043883,-500.0,0.00017899,2]
[406629604,1771995043894,-500.0,0.00017899,2]
[406629605,1771995043905,-410.03196276,0.00017899,2]
[406629606,1771995043915,-500.0,0.00017899,2]
[406629607,1771995043926,-8632.4155,0.000179,2]
[406629608,1771995043937,-2240.7232043,0.000179,3]
[406629609,1771995043948,-1090.95825916,0.000179,2]
[406629610,1771995043959,-700.0,0.000179,6]
[406629611,1771995043970,-15579.80235494,0.000179,2]
[406629612,1771995043980,-1895.165434,0.000179,2]
[406629613,1771995043990,-1336.83849284,0.000179,2]
[406629614,1771995044001,-4013.0,0.000179,2]
[406629615,1771995044013,-480.05628739,0.0001799,2]
[406629616,1771995044028,-480.05628739,0.0001799,2]
[406629617,1771995044039,-151.0,0.00017996,2]
[406629618,1771995044051,-873.09,0.00017997,2]
[406629619,1771995044068,-698.6,0.00017997,2]
[406629620,1771995044080,-500.0,0.00017997,2]
[406629621,1771995044094,-154.86311374,0.00017997,2]
[406629622,1771995044106,-50158.5039934,0.00017998,2]
[406629623,1771995044120,-3260.9500812,0.00017998,2]
[406629624,1771995044324,-39516.8820419,0.00017998,2]
[406629625,1771995044356,-13689.1198964,0.00017998,2]
[406629626,1771995044367,-900.6439936,0.00017998,2]
[406629627,1771995044376,-300.0,0.00017999,2]
[406629628,1771995044388,-300.0,0.00017999,2]
[406629629,1771995044398,-666.0,0.00017999,2]
[406629630,1771995044408,-1045.94,0.00017999,2]
[406629631,1771995044418,-1045.94,0.00017999,2]
[406629632,1771995044427,-1045.94,0.00017999,2]
[406629633,1771995044437,-1045.94,0.00017999,2]
[406629634,1771995044447,-1045.94,0.00017999,2]
[406629635,1771995044457,-1045.94,0.00017999,2]